bitfinex-derivatives/quotes_BNBF0:USTF0_20250130
["timestamp","ask_amount","ask_price","bid_price","bid_amount"]
[1738273119918,1.09834693,679.03,678.07,1.10134957]
[1738273121122,1.09834693,679.03,678.08,0.25744314]
[1738273121322,1.09834693,679.03,678.07,1.10134957]
[1738273121523,1.09834693,679.03,678.08,0.25744293]
[1738273121823,1.09834693,679.03,678.07,1.10134957]
[1738273122825,0.29443373,679.27,678.05,0.885]
[1738273123119,0.29443373,679.27,678.06,0.55237333]
[1738273123319,0.29443373,679.27,678.07,0.55236898]
[1738273123524,0.29443373,679.27,678.08,0.25741419]
[1738273123722,0.29443373,679.27,678.07,0.29495479]
[1738273125126,0.29443373,679.27,678.08,0.25742411]
[1738273129129,1.39278066,679.27,678.08,1.43142411]
[1738273129428,1.39278066,679.27,678.09,0.25742411]
[1738273130026,0.27066978,679.26,678.09,0.25742411]
[1738273132429,1.09834693,679.2,678.1,1.10134957]
[1738273132628,0.27066978,679.19,678.11,0.25742411]
[1738273133827,0.27067338,679.18,678.12,0.25745641]
[1738273134027,0.27067338,679.19,678.11,0.25745641]
[1738273135132,1.09834693,679.2,678.11,0.25745641]
[1738273135334,0.27067389,679.19,678.11,0.25745641]
[1738273135634,1.09834693,679.2,678.11,0.25745641]
[1738273135929,1.09834693,679.18,678.11,0.25745641]
[1738273137234,1.09834693,679.18,678.12,0.25744968]
[1738273137534,1.09834693,679.18,678.13,0.25744968]
[1738273137734,1.09834693,679.18,678.14,0.25744968]
[1738273137934,1.09834693,679.18,678.15,0.25744968]
[1738273138134,1.09834693,679.18,678.11,0.25744968]
[1738273138334,1.09834693,679.18,678.12,0.25744968]
[1738273138530,1.09834693,679.18,678.11,0.25744968]
[1738273138729,1.09834693,679.18,678.12,0.25744968]
[1738273138933,1.09834693,679.18,678.1,1.10134957]
[1738273138934,1.09834693,679.18,678.13,0.25744968]
[1738273139236,1.09834693,679.2,678.14,0.25744968]
[1738273139534,1.09834693,679.2,678.15,0.25744968]
[1738273139733,1.09834693,679.2,678.09,0.25744968]
[1738273140035,0.2706948,679.19,678.1,0.25744968]
[1738273140233,0.2706948,679.19,678.11,0.25744968]
[1738273140534,0.2706948,679.19,678.09,0.25744968]
[1738273140735,0.2706948,679.19,678.1,0.25744968]
[1738273140928,0.2706948,679.19,678.09,0.25744968]
[1738273141932,0.27072364,679.18,678.1,0.25760547]
[1738273142133,0.27072364,679.18,678.08,2.27534957]
[1738273142134,0.27072364,679.17,678.11,0.25760547]
[1738273142333,0.27072364,679.17,678.08,2.27534957]
[1738273142334,0.27072364,679.16,678.12,0.25760547]
[1738273142529,0.27072364,679.19,678.09,0.25760547]
[1738273142733,0.27072364,679.18,678.1,0.25761262]
[1738273142930,0.27072364,679.17,678.11,0.25761262]
[1738273143135,1.09834693,679.12,678.09,0.25761262]
[1738273143438,0.27072364,679.11,678.09,0.25761262]
[1738273143635,0.27072614,679.1,678.1,0.2576152]
[1738273143937,0.27072614,679.09,678.11,0.2576152]
[1738273144133,0.27072614,679.11,678.09,0.2576152]
[1738273144434,0.27072614,679.1,678.1,0.2576152]
[1738273144638,0.2707234,679.09,678.11,0.25761172]
[1738273144937,0.2707234,679.08,678.12,0.25761172]
[1738273145139,0.2707234,679.11,678.09,0.25761172]
[1738273145333,0.2707234,679.1,678.1,0.25761172]
[1738273145538,0.2707234,679.11,678.09,0.25761172]
[1738273145738,0.2707234,679.1,678.1,0.25761172]
[1738273145938,0.2707234,679.11,678.09,0.25761172]
[1738273146130,0.2707234,679.1,678.1,0.25761172]
[1738273146437,0.2707234,679.09,678.11,0.25761172]
[1738273146638,1.09834693,679.04,678.09,0.25761172]
[1738273146832,1.09834693,679.04,678.08,1.174]
[1738273147035,0.27071612,679.03,678.09,0.25761628]
[1738273149840,1.09834693,679.04,678.09,0.25761628]
[1738273150038,0.27071599,679.03,678.09,0.25761628]
[1738273150235,1.09834693,679.04,678.1,0.25761616]
[1738273150440,1.09834693,679.04,678.11,0.25761616]
[1738273150641,1.09834693,679.04,678.12,0.25761616]
[1738273150842,1.09834693,679.04,678.09,0.25761616]
[1738273151143,1.09834693,679.04,678.1,0.25761616]
[1738273151342,1.09834693,679.04,678.09,0.25761616]
[1738273151737,1.09834693,679.04,678.08,1.174]
[1738273151942,1.09834693,679.04,678.09,0.25759936]
[1738273152340,1.09834693,679.04,678.1,0.25759936]
[1738273152540,1.09834693,679.04,678.11,0.25759936]
[1738273152936,1.09834693,679.04,678.12,0.25759936]
[1738273153142,1.09834693,679.04,678.08,0.25759936]
[1738273153442,1.09834693,679.04,678.09,0.25759936]
[1738273156044,1.09834693,679.07,678.09,0.25759936]
[1738273156743,1.09834693,679.07,678.08,1.148]
[1738273157044,1.09834693,679.07,678.09,0.25759431]
[1738273159143,1.09834693,679.09,678.1,1.10134957]
[1738273159336,1.09834693,679.09,678.11,0.25759431]
[1738273160145,1.09834693,679.09,678.12,0.2575768]
[1738273160342,1.09834693,679.09,678.1,1.10134957]
[1738273160343,1.09834693,679.09,678.13,0.2575768]
[1738273160644,1.09834693,679.09,678.14,0.2575768]
[1738273160945,1.09834693,679.09,678.15,0.2575768]
[1738273161142,1.09834693,679.09,678.11,0.2575768]
[1738273161444,1.09834693,679.09,678.12,0.2575768]
[1738273161746,1.09834693,679.09,678.1,1.10134957]
[1738273161747,1.09834693,679.09,678.13,0.2575768]
[1738273162046,1.09834693,679.09,678.14,0.2575768]
[1738273162246,1.09834693,679.09,678.11,0.2575768]
[1738273162449,1.09834693,679.09,678.12,0.2575768]
[1738273162749,1.09834693,679.13,678.14,1.10134957]
[1738273162946,1.09834693,679.13,678.15,0.2575768]
[1738273164950,1.09834693,679.13,678.14,1.10134957]
[1738273165249,1.09834693,679.13,678.15,0.25756617]
[1738273166149,0.29443373,679.27,678.15,0.25756617]
[1738273166150,1.09834693,679.22,678.15,0.25756617]
[1738273166449,1.09834693,679.22,678.16,0.25756617]
[1738273166650,1.09834693,679.22,678.11,0.25756617]
[1738273168352,1.09834693,679.22,678.1,1.10134957]
[1738273168550,1.09834693,679.22,678.11,0.25756595]
[1738273172253,0.27065538,679.21,678.11,0.25756595]
[1738273174661,0.27065538,679.21,678.11,1.22456595]
[1738273174861,0.27065538,679.21,678.12,0.25756595]
[1738273175053,1.09834693,679.22,678.11,0.967]
[1738273175257,0.27065589,679.21,678.12,0.25748563]
[1738273175861,1.09834693,679.18,678.18,1.10134957]
[1738273176161,1.09834693,679.18,678.19,0.25748563]
[1738273178064,0.27066136,679.17,678.19,0.25748563]
[1738273178663,1.09834693,679.18,678.2,0.2574036]
[1738273178862,1.09834693,679.18,678.18,1.10134957]
[1738273178863,0.27066048,679.17,678.21,0.2574036]
[1738273179062,0.27066048,679.17,678.19,0.2574036]
[1738273179262,1.09834693,679.18,678.18,1.10134957]
[1738273179263,1.09834693,679.18,678.2,0.2574036]
[1738273179463,1.09834693,679.18,678.13,1.53790063]
[1738273179464,1.09834693,679.19,678.19,0.2574036]
[1738273179663,0.27065773,679.18,678.2,0.2574036]
[1738273179864,0.27065773,679.18,678.21,0.2574036]
[1738273180162,0.27065773,679.18,678.22,0.2574036]
[1738273180365,1.09834693,679.19,678.23,0.25742689]
[1738273180562,1.09834693,679.19,678.24,0.25742689]
[1738273180756,1.09834693,679.19,678.25,0.25742689]
[1738273180960,1.09834693,679.19,678.26,0.25742689]
[1738273181162,1.09834693,679.19,678.18,0.25742689]
[1738273183665,1.09834693,679.19,678.17,1.10134957]
[1738273183865,0.29443373,679.27,678.13,1.53790063]
[1738273183866,1.09834693,679.18,678.2,1.10134957]
[1738273184166,1.09834693,679.18,678.21,0.25752974]
[1738273185561,1.09834693,679.18,678.22,0.25752859]
[1738273185765,1.09834693,679.18,678.21,0.25752859]
[1738273186165,0.29443373,679.27,678.22,1.10134957]
[1738273186166,1.09834693,679.16,678.22,1.10134957]
[1738273186365,1.09834693,679.16,678.23,0.25752859]
[1738273187169,1.09834693,679.16,678.22,1.10134957]
[1738273187367,1.09834693,679.16,678.23,0.25752776]
[1738273188874,1.09834693,679.16,678.22,1.10134957]
[1738273189072,1.09834693,679.16,678.23,0.25750779]
[1738273190375,1.09834693,679.16,678.22,1.10134957]
[1738273190571,0.29443373,679.27,678.25,1.10134957]
[1738273190572,1.09834693,679.15,678.25,1.10134957]
[1738273190779,1.09834693,679.15,678.26,0.25751834]
[1738273192282,1.09834693,679.15,678.25,1.10134957]
[1738273192480,1.09834693,679.15,678.26,0.25752982]
[1738273193781,1.09834693,679.12,678.26,0.25752982]
[1738273193981,1.09834693,679.12,678.24,1.10134957]
[1738273194182,1.09834693,679.12,678.25,0.25755949]
[1738273196983,1.09834693,679.1,678.26,1.10134957]
[1738273197183,1.09834693,679.1,678.27,0.25755949]
[1738273197479,1.09834693,679.1,678.26,1.10134957]
[1738273197480,1.09834693,679.1,678.28,0.25755624]
[1738273197686,1.09834693,679.1,678.27,0.25755624]
[1738273197880,1.09834693,679.1,678.26,1.10134957]
[1738273198080,1.09834693,679.1,678.27,0.2575602]
[1738273199081,1.09834693,679.1,678.26,1.10134957]
[1738273199283,1.09834693,679.1,678.27,0.25755971]
[1738273200790,1.09834693,679.07,678.29,1.10134957]
[1738273201088,1.09834693,679.07,678.3,0.25755971]
[1738273201887,1.09834693,679.07,678.29,1.10134957]
[1738273202088,1.09834693,679.07,678.3,0.25755985]
[1738273203283,1.09834693,679.06,678.3,1.35890942]
[1738273203588,1.09834693,679.06,678.3,1.10134957]
[1738273203782,1.09834693,679.06,678.31,0.25755955]
[1738273205990,1.09834693,679.06,678.31,1.35890912]
[1738273206189,1.09834693,679.06,678.32,0.25755955]
[1738273208685,1.09834693,679.06,678.31,1.10134957]
[1738273208900,1.09834693,679.06,678.32,0.25755511]
[1738273209188,1.09834693,679.07,678.32,1.35890468]
[1738273209386,1.09834693,679.07,678.32,1.10134957]
[1738273212795,1.09834693,679.06,678.31,1.10134957]
[1738273215697,0.29443373,679.27,678.27,1.01]
[1738273215698,1.09834693,679.15,678.27,1.01]
[1738273219494,1.09834693,679.14,678.27,1.01]
[1738273222896,0.29443373,679.27,678.27,1.01]
[1738273222897,1.09834693,679.19,678.27,1.01]
[1738273226503,1.09834693,679.15,678.27,1.01]
[1738273228907,1.09834693,679.17,678.27,1.01]
[1738273230305,1.09834693,679.17,678.28,0.25755484]
[1738273230709,1.09834693,679.17,678.27,0.25755484]
[1738273230909,1.09834693,679.17,678.28,0.25755484]
[1738273231110,1.09834693,679.17,678.27,0.25755484]
[1738273231311,1.09834693,679.17,678.28,0.25755484]
[1738273231508,1.09834693,679.17,678.27,0.25755484]
[1738273231709,1.09834693,679.17,678.28,1.16655484]
[1738273231909,1.09834693,679.17,678.29,0.25755484]
[1738273233811,1.09834693,679.17,678.28,0.909]
[1738273234714,1.09834693,679.08,678.3,1.10134957]
[1738273236913,1.09834693,679.08,678.31,0.2575551]
[1738273237308,1.09834693,679.08,678.3,1.10134957]
[1738273237512,1.09834693,679.08,678.31,0.25755722]
[1738273238213,1.09834693,679.08,678.32,0.25755662]
[1738273238414,1.09834693,679.08,678.31,0.25755662]
[1738273238615,1.09834693,679.08,678.29,1.10134957]
[1738273241618,1.09834693,679.09,678.28,2.01034957]
[1738273245321,1.09834693,679.16,678.28,0.909]
[1738273249820,1.09834693,679.18,678.28,0.909]
[1738273253228,1.09834693,679.2,678.28,0.909]
[1738273256538,1.09834693,679.22,678.28,0.909]
[1738273259736,1.09834693,679.21,678.28,0.909]
[1738273262935,1.09834693,679.2,678.28,0.909]
[1738273264241,0.27066965,679.19,678.28,0.909]
[1738273266639,1.09834693,679.16,678.28,0.909]
[1738273270546,1.09834693,679.06,678.28,0.909]
[1738273273649,1.09834693,679.09,678.28,0.909]
[1738273276452,1.09834693,679.04,678.28,0.909]
[1738273279654,1.09834693,679.03,678.28,0.909]
[1738273282556,1.09834693,679.21,678.28,0.909]
[1738273282557,1.09834693,679.02,678.28,2.01034957]
[1738273283156,1.09834693,679.02,678.29,0.2575653]
[1738273284551,1.09834693,679.02,678.29,1.4775653]
[1738273284757,1.09834693,679.02,678.3,0.2575653]
[1738273285456,1.09834693,679.04,678.31,1.10134957]
[1738273285756,1.09834693,679.04,678.32,0.2575653]
[1738273289765,1.09834693,679.2,678.32,0.2575653]
[1738273289962,1.09834693,679.2,678.33,0.2575653]
[1738273290160,1.09834693,679.2,678.3,0.2575653]
[1738273290358,1.09834693,679.2,678.31,0.2575653]
[1738273290561,1.09834693,679.2,678.3,0.2575653]
[1738273290862,1.09834693,679.2,678.31,0.2575653]
[1738273291064,1.09834693,679.2,678.32,0.2575653]
[1738273291264,1.09834693,679.2,678.33,0.2575653]
[1738273291564,1.09834693,679.2,678.34,0.2575653]
[1738273291765,1.09834693,679.2,678.3,0.2575653]
[1738273291963,1.09834693,679.2,678.29,1.22]
[1738273292162,1.09834693,679.2,678.3,0.257523]
[1738273292864,1.09834693,679.23,678.3,0.257523]
[1738273296665,1.09834693,679.26,678.3,0.257523]
[1738273297068,1.09834693,679.26,678.31,0.25752602]
[1738273297262,1.09834693,679.26,678.3,0.25752602]
[1738273297462,1.09834693,679.26,678.31,0.25752602]
[1738273297766,1.09834693,679.26,678.32,0.25752602]
[1738273297960,1.09834693,679.26,678.3,0.25752602]
[1738273298167,1.09834693,679.26,678.31,0.25752602]
[1738273298367,1.09834693,679.26,678.32,0.25752602]
[1738273298562,1.09834693,679.26,678.3,0.25752602]
[1738273298763,1.09834693,679.26,678.31,0.25752602]
[1738273298964,1.09834693,679.26,678.3,0.25752602]
[1738273299168,1.09834693,679.26,678.31,0.25752602]
[1738273299368,1.09834693,679.26,678.32,0.25752602]
[1738273299671,1.09834693,679.26,678.33,0.25752602]
[1738273299970,1.09834693,679.26,678.34,0.25752602]
[1738273300165,1.09834693,679.26,678.35,0.25752602]
[1738273300367,1.09834693,679.26,678.29,1.22]
[1738273300368,1.09834693,679.26,678.3,0.25752602]
[1738273300570,1.09834693,679.26,678.29,1.22]
[1738273300763,1.09834693,679.26,678.3,0.25752306]
[1738273301765,0.77062294,679.62,678.3,0.25752306]
[1738273301970,0.27062477,679.61,678.3,0.25752306]
[1738273302170,0.27062492,679.6,678.31,0.25752573]
[1738273302470,0.27062492,679.59,678.32,0.25752573]
[1738273302671,0.27062492,679.61,678.3,0.25752573]
[1738273302971,0.27062492,679.6,678.31,0.25752573]
[1738273303170,0.27062492,679.61,678.3,0.25752573]
[1738273304873,0.27062492,679.61,678.31,0.25752573]
[1738273305167,0.27062492,679.61,678.28,1.53759486]
[1738273305168,0.27062492,679.61,678.32,0.25752573]
[1738273305369,0.27062492,679.61,678.33,0.25752573]
[1738273305570,0.27062492,679.61,678.28,1.53759486]
[1738273305770,0.27062492,679.61,678.33,1.175]
[1738273308970,1.10113152,679.3,678.33,1.175]
[1738273311667,1.10113152,679.33,678.33,1.175]
[1738273315482,4.30778512,683.54,678.33,1.175]
[1738273315483,1.37175391,679.32,678.34,0.25752322]
[1738273315679,0.27062239,679.31,678.34,0.25752322]
[1738273315878,1.10113152,679.32,678.33,1.175]
[1738273318374,1.10113152,679.3,678.33,1.175]
[1738273321478,0.56731941,679.81,678.33,1.175]
[1738273321479,1.10113152,679.24,678.33,1.175]
[1738273325778,1.10113152,679.24,678.34,0.25753244]
[1738273326983,1.10113152,679.22,678.34,0.25753244]
[1738273328787,1.10113152,679.22,678.33,1.175]
[1738273329088,1.10113152,679.22,678.34,0.25753359]
[1738273329789,1.10113152,679.12,678.38,1.10190662]
[1738273333191,1.10113152,679.13,678.37,1.10190662]
[1738273334291,1.10113152,679.13,678.38,0.25752986]
[1738273334897,1.10113152,679.13,678.37,1.10190662]
[1738273335494,1.10113152,679.13,678.38,0.25753078]
[1738273335792,1.10113152,679.13,678.37,1.10190662]
[1738273335993,1.10113152,679.13,678.38,0.979]
[1738273336894,2.24814352,679.63,678.38,0.979]
[1738273336895,1.10113152,679.15,678.38,0.979]
[1738273340797,2.24814352,679.66,678.38,0.979]
[1738273340798,1.10113152,679.16,678.38,0.979]
[1738273342695,1.10113152,679.16,678.39,0.25744035]
[1738273343599,1.10113152,679.2,678.39,0.25744035]
[1738273343793,1.10113152,679.2,678.38,0.979]
[1738273343994,1.10113152,679.2,678.39,0.2573607]
[1738273345200,1.10113152,679.2,678.38,0.979]
[1738273345401,1.10113152,679.2,678.39,0.25735519]
[1738273347106,1.32135782,679.65,678.39,0.25735519]
[1738273347107,1.10113152,679.34,678.39,0.25735519]
[1738273350708,1.10113152,679.37,678.39,0.25735519]
[1738273350905,1.10113152,679.37,678.4,0.25726745]
[1738273351104,1.10113152,679.37,678.41,0.25726745]
[1738273351305,1.10113152,679.37,678.39,0.25726745]
[1738273351604,1.10113152,679.37,678.4,0.25726745]
[1738273351907,1.10113152,679.37,678.41,0.25726745]
[1738273352105,1.10113152,679.37,678.39,0.25726745]
[1738273352707,1.10113152,679.37,678.4,0.25725417]
[1738273352906,1.10113152,679.37,678.39,0.25725417]
[1738273353106,1.10113152,679.37,678.4,0.25725417]
[1738273353304,1.10113152,679.37,678.39,0.25725417]
[1738273353502,1.10113152,679.38,678.39,0.25725417]
[1738273353706,0.27058377,679.37,678.39,0.25725417]
[1738273355812,1.10113152,679.35,678.38,2.08090662]
[1738273356012,1.10113152,679.35,678.39,0.25728676]
[1738273356912,0.27059093,679.34,678.39,0.25728676]
[1738273357814,1.10113152,679.35,678.39,0.25728676]
[1738273359013,1.10113152,679.33,678.39,0.25728676]
[1738273359207,1.10113152,679.33,678.38,0.979]
[1738273359408,1.10113152,679.33,678.39,0.25730047]
[1738273360913,1.10113152,679.33,678.38,0.979]
[1738273361116,1.10113152,679.33,678.39,0.25726277]
[1738273361813,1.10113152,679.34,678.39,0.25726277]
[1738273364120,1.10113152,679.34,678.36,1.10190662]
[1738273364321,1.10113152,679.34,678.37,0.2572722]
[1738273365121,1.10113152,679.34,678.37,1.3112722]
[1738273365417,1.10113152,679.34,678.38,0.2572722]
[1738273365620,1.10113152,679.34,678.37,1.054]
[1738273365915,1.10113152,679.34,678.38,0.25727369]
[1738273366119,1.10113152,679.34,678.39,0.25727477]
[1738273366420,1.10113152,679.34,678.4,0.25727477]
[1738273366620,1.10113152,679.34,678.37,1.054]
[1738273366919,1.10113152,679.34,678.38,0.25726645]
[1738273367619,1.10113152,679.34,678.37,1.054]
[1738273367821,1.10113152,679.34,678.38,0.25727284]
[1738273368026,1.10113152,679.4,678.38,0.25727284]
[1738273371026,1.10113152,679.37,678.38,0.25727284]
[1738273371627,1.10113152,679.37,678.37,1.054]
[1738273374629,1.10113152,679.41,678.37,1.054]
[1738273378131,1.10113152,679.32,678.37,1.054]
[1738273381533,0.27066524,679.31,678.37,1.054]
[1738273381827,1.37179676,679.31,678.37,1.054]
[1738273382031,0.27066524,679.3,678.37,1.054]
[1738273383934,0.2706671,679.29,678.37,1.054]
[1738273384131,0.2706671,679.28,678.37,1.054]
[1738273384335,0.2706671,679.3,678.37,1.054]
[1738273385237,1.10113152,679.22,678.37,1.054]
[1738273388442,1.10113152,679.29,678.37,1.054]
[1738273388641,0.27066692,679.21,678.37,1.054]
[1738273388842,1.10113152,679.29,678.37,1.054]
[1738273389041,0.27066815,679.28,678.37,1.054]
[1738273390942,1.10113152,679.25,678.37,1.054]
[1738273391244,0.27066815,679.24,678.37,1.054]
[1738273392144,1.10113152,679.25,678.37,1.054]
[1738273392345,0.27066827,679.24,678.37,1.054]
[1738273393843,1.10113152,679.25,678.37,1.054]
[1738273394044,0.27065756,679.24,678.37,1.054]
[1738273394446,0.27065756,679.23,678.37,1.054]
[1738273394649,0.27065756,679.25,678.37,1.054]
[1738273394848,0.27065756,679.24,678.37,1.054]
[1738273395049,0.27065756,679.25,678.37,1.054]
[1738273395247,0.27065756,679.24,678.37,1.054]
[1738273395450,1.10113152,679.26,678.37,1.054]
[1738273395749,0.27065572,679.25,678.37,1.054]
[1738273398152,0.27065572,679.24,678.37,1.054]
[1738273398351,0.27065572,679.27,678.37,1.054]
[1738273398551,0.27065572,679.26,678.37,1.054]
[1738273398750,0.27065572,679.27,678.37,1.054]
[1738273399051,0.27065572,679.26,678.37,1.054]
[1738273399354,0.27065572,679.25,678.37,1.054]
[1738273399651,0.27065572,679.24,678.37,1.054]
[1738273399851,0.27065572,679.27,678.37,1.054]
[1738273400150,0.27065572,679.26,678.37,1.054]
[1738273400450,0.27065572,679.25,678.37,1.054]
[1738273400746,0.27065572,679.24,678.37,1.054]
[1738273400951,1.10113152,679.24,678.37,1.054]
[1738273401251,0.27065572,679.23,678.37,1.054]
[1738273402052,1.10113152,679.24,678.37,1.054]
[1738273402247,0.27066136,679.23,678.37,1.054]
[1738273403747,0.27065847,679.22,678.37,1.054]
[1738273406958,1.10113152,679.23,678.37,1.054]
[1738273407257,0.27065761,679.22,678.37,1.054]
[1738273407556,1.10113152,679.23,678.37,1.054]
[1738273407757,1.10113152,679.2,678.37,1.054]
[1738273410657,1.10113152,679.22,678.37,1.054]
[1738273414059,1.10113152,679.16,678.37,1.054]
[1738273416663,1.10113152,679.14,678.37,1.054]
[1738273420265,1.10113152,679.1,678.37,1.054]
[1738273423163,1.10113152,679.11,678.37,1.054]
[1738273426165,1.10113152,679.1,678.37,1.054]
[1738273432774,1.10113152,679.08,678.37,1.054]
[1738273440381,1.10113152,679.09,678.37,1.054]
[1738273443484,1.10113152,679.11,678.37,1.054]
[1738273446484,1.10113152,679.07,678.37,1.054]
[1738273449483,1.10113152,679.06,678.37,1.054]
[1738273452585,0.56757772,679.47,678.37,1.054]
[1738273452586,1.10113152,679.02,678.37,1.054]
[1738273455786,1.10113152,679.07,678.37,1.054]
[1738273458900,1.10113152,679.17,678.37,1.054]
[1738273462097,1.10113152,679.16,678.37,1.054]
[1738273465404,1.10113152,679.15,678.37,1.054]
[1738273465805,0.27069397,679.14,678.37,1.054]
[1738273467810,1.10113152,679.1,678.37,1.054]
[1738273471110,1.10113152,679.11,678.37,1.054]
[1738273475613,1.10113152,679.12,678.37,1.054]
[1738273478512,1.10113152,679.07,678.37,1.054]
[1738273482114,1.10113152,679.01,678.37,1.054]
[1738273485616,1.10113152,679.0,678.37,1.054]
[1738273489220,1.10113152,678.99,678.37,1.054]
[1738273492025,1.10113152,678.97,678.37,1.054]
[1738273499728,2.24814352,679.61,678.37,1.054]
[1738273499729,1.10113152,679.01,678.37,1.054]
[1738273502733,1.10113152,679.21,678.37,1.054]
[1738273502924,0.29446407,679.2,678.37,1.054]
[1738273511941,0.27076476,679.19,678.37,1.054]
[1738273515944,1.10113152,679.06,678.37,1.054]
[1738273516239,0.27076476,679.05,678.37,1.054]
[1738273518642,1.10113152,679.06,678.37,1.054]
[1738273519042,1.10113152,679.04,678.37,1.054]
[1738273521947,0.29446407,679.2,678.37,1.054]
[1738273525152,0.27074735,679.19,678.37,1.054]
[1738273526049,0.29446407,679.2,678.37,1.054]
[1738273526050,0.27075889,679.18,678.37,1.054]
[1738273526245,0.27075889,679.19,678.37,1.054]
[1738273526446,0.27075889,679.18,678.37,1.054]
[1738273526648,0.27075889,679.17,678.37,1.054]
[1738273526844,0.27075889,679.16,678.37,1.054]
[1738273527049,0.27075889,679.15,678.37,1.054]
[1738273527252,0.27075889,679.14,678.37,1.054]
[1738273527647,0.27075889,679.13,678.37,1.054]
[1738273527847,0.27075889,679.12,678.37,1.054]
[1738273528046,0.27075889,679.11,678.37,1.054]
[1738273528245,0.27075889,679.1,678.37,1.054]
[1738273528452,0.29446407,679.2,678.37,1.054]
[1738273528453,0.27075889,679.19,678.37,1.054]
[1738273528654,0.27075889,679.09,678.37,1.054]
[1738273528858,0.27075889,679.08,678.37,1.054]
[1738273529152,0.29446407,679.2,678.37,1.054]
[1738273529357,1.1014699,678.98,678.37,1.054]
[1738273529656,0.2707635,678.97,678.37,1.054]
[1738273529856,1.1014699,678.98,678.37,1.054]
[1738273532351,1.1014699,679.03,678.37,1.054]
[1738273532556,0.27078974,679.02,678.37,1.054]
[1738273532956,1.1014699,679.03,678.37,1.054]
[1738273533360,0.27079618,679.02,678.37,1.054]
[1738273535359,1.1014699,679.01,678.37,1.054]
[1738273535557,0.27079618,679.0,678.37,1.054]
[1738273538060,1.1014699,678.98,678.37,1.054]
[1738273539660,0.27080182,678.97,678.37,1.054]
[1738273541059,1.1014699,678.98,678.37,1.054]
[1738273541060,0.27080198,678.96,678.37,1.054]
[1738273541259,0.27080198,678.95,678.37,1.054]
[1738273541460,0.27080198,678.94,678.37,1.054]
[1738273541658,0.27080198,678.97,678.37,1.054]
[1738273545768,1.1014699,678.86,678.37,1.054]
[1738273546365,0.27081177,678.85,678.37,1.054]
[1738273547664,1.1014699,678.86,678.37,1.054]
[1738273548061,0.27081421,678.85,678.37,1.054]
[1738273552365,0.27081421,678.84,678.37,1.054]
[1738273552567,0.27081421,678.83,678.37,1.054]
[1738273552764,1.1014699,678.88,678.37,1.054]
[1738273553068,0.2708265,678.87,678.37,1.054]
[1738273555962,0.2708265,678.89,678.37,1.054]
[1738273556162,0.27082748,678.88,678.37,1.054]
[1738273556364,0.27082748,678.87,678.37,1.054]
[1738273556560,0.27082748,678.89,678.37,1.054]
[1738273556765,0.27082748,678.88,678.37,1.054]
[1738273557067,0.27082748,678.87,678.37,1.054]
[1738273557261,0.27082748,678.86,678.37,1.054]
[1738273557466,0.27082748,678.85,678.37,1.054]
[1738273557667,0.27082748,678.84,678.37,1.054]
[1738273557867,0.27082748,678.89,678.37,1.054]
[1738273559272,1.1014699,678.88,678.37,1.054]
[1738273559664,0.27082925,678.87,678.37,1.054]
[1738273563868,1.1014699,678.88,678.37,1.054]
[1738273564069,0.27083243,678.87,678.37,1.054]
[1738273564575,1.1014699,678.73,678.37,1.054]
[1738273567978,1.1014699,678.72,678.37,1.054]
[1738273571281,0.56788316,679.1,678.37,1.054]
[1738273571282,1.1014699,678.67,678.37,1.054]
[1738273575180,1.1014699,678.73,678.37,1.054]
[1738273578286,0.56787459,679.18,678.37,1.054]
[1738273578287,1.1014699,678.72,678.37,1.054]
[1738273581988,1.1014699,678.69,678.37,1.054]
[1738273585195,1.1014699,678.67,678.37,1.054]
[1738273587801,1.1014699,678.66,678.37,1.054]
[1738273590704,1.1014699,678.67,678.37,1.054]
[1738273594704,5.28622946,685.88,678.37,1.054]
[1738273594705,1.1014699,678.71,678.37,1.054]
[1738273601110,2.24883439,679.35,678.37,1.054]
[1738273601111,1.1014699,678.69,678.37,1.054]
[1738273604515,1.1014699,678.91,678.37,1.054]
[1738273604516,1.1014699,678.63,678.37,1.054]
[1738273609119,1.1014699,678.64,678.37,1.054]
[1738273612924,1.1014699,678.62,678.37,1.054]
[1738273616325,1.1014699,678.59,678.37,1.054]
[1738273623626,1.1014699,678.61,678.37,1.054]
[1738273627235,1.1014699,678.7,678.37,1.054]
[1738273634338,1.1014699,678.69,678.37,1.054]
[1738273636839,1.1014699,678.67,678.37,1.054]
[1738273639444,1.1014699,678.62,678.37,1.054]
[1738273643544,1.1014699,678.64,678.37,1.054]